[Event "*** Titled Tuesday Blitz"]
[Site "Chess.com"]
[Date "2018.06.05"]
[Round "4"]
[White "Arystanner23"]
[Black "dretch"]
[Result "1/2-1/2"]
[WhiteElo "2633"]
[BlackElo "2748"]
[TimeControl "180+2"]
[EndTime "13:59:35 PDT"]
[Termination "Game drawn by repetition"]

1. e4 {[%clk 0:03:01.5]} 1... e6 {[%clk 0:03:01.1]} 2. d4 {[%clk 0:03:02.2]}
2... d5 {[%clk 0:03:02.3]} 3. Nd2 {[%clk 0:03:03.8]} 3... Be7 {[%clk 0:03:00.4]}
4. Bd3 {[%clk 0:03:03.8]} 4... c5 {[%clk 0:03:01.1]} 5. dxc5 {[%clk 0:03:05.1]}
5... Nf6 {[%clk 0:03:02.1]} 6. Qe2 {[%clk 0:03:05.1]} 6... O-O {[%clk
0:02:59.9]} 7. Ngf3 {[%clk 0:03:06.2]} 7... a5 {[%clk 0:03:01.3]} 8. O-O {[%clk
0:03:07.2]} 8... Na6 {[%clk 0:03:02.4]} 9. e5 {[%clk 0:03:08.3]} 9... Nd7 {[%clk
0:03:03.2]} 10. c3 {[%clk 0:03:09.4]} 10... Naxc5 {[%clk 0:02:58.1]} 11. Bb5
{[%clk 0:03:10.6]} 11... a4 {[%clk 0:02:53.8]} 12. Nd4 {[%clk 0:03:08.2]} 12...
Qb6 {[%clk 0:02:49.3]} 13. f4 {[%clk 0:03:04.8]} 13... Nb8 {[%clk 0:02:44.2]}
14. Kh1 {[%clk 0:03:04.1]} 14... Nc6 {[%clk 0:02:41.7]} 15. N2f3 {[%clk
0:03:04.6]} 15... a3 {[%clk 0:02:40.7]} 16. b3 {[%clk 0:02:34]} 16... Ne4 {[%clk
0:02:39.3]} 17. Nxc6 {[%clk 0:02:20.9]} 17... bxc6 {[%clk 0:02:38.4]} 18. Bd3
{[%clk 0:02:22.2]} 18... Nxc3 {[%clk 0:02:31.6]} 19. Qc2 {[%clk 0:02:18.1]}
19... Ne4 {[%clk 0:02:32.2]} 20. Bxe4 {[%clk 0:02:17.7]} 20... dxe4 {[%clk
0:02:33.2]} 21. Qxe4 {[%clk 0:02:19.1]} 21... Ba6 {[%clk 0:02:30.3]} 22. Rd1
{[%clk 0:02:14.8]} 22... Rfd8 {[%clk 0:02:28]} 23. Be3 {[%clk 0:02:14.7]} 23...
Qb4 {[%clk 0:02:28.1]} 24. Qxb4 {[%clk 0:02:02.3]} 24... Bxb4 {[%clk 0:02:27.6]}
25. Bb6 {[%clk 0:01:52.8]} 25... Rd3 {[%clk 0:01:30.6]} 26. Nd4 {[%clk
0:01:27.1]} 26... Rb8 {[%clk 0:01:10.3]} 27. Rxd3 {[%clk 0:01:17.5]} 27... Bxd3
{[%clk 0:01:10.4]} 28. Bc7 {[%clk 0:01:18.2]} 28... Rc8 {[%clk 0:01:02.4]} 29.
Bd6 {[%clk 0:01:19]} 29... c5 {[%clk 0:00:57]} 30. Rc1 {[%clk 0:01:02.6]} 30...
Ba6 {[%clk 0:00:37.8]} 31. h3 {[%clk 0:00:48.7]} 31... Ra8 {[%clk 0:00:16.3]}
32. Nc6 {[%clk 0:00:45.9]} 32... Bd2 {[%clk 0:00:16.6]} 33. Rxc5 {[%clk
0:00:42]} 33... Bxf4 {[%clk 0:00:17.6]} 34. Ra5 {[%clk 0:00:40.9]} 34... Bb7
{[%clk 0:00:16.8]} 35. Ne7+ {[%clk 0:00:22.4]} 35... Kh8 {[%clk 0:00:17.7]} 36.
Rb5 {[%clk 0:00:23.3]} 36... Ba6 {[%clk 0:00:18.6]} 37. Ra5 {[%clk 0:00:21.6]}
37... f6 {[%clk 0:00:18.7]} 38. Nc6 {[%clk 0:00:19.4]} 38... Bb7 {[%clk
0:00:19]} 39. Rxa8+ {[%clk 0:00:18.1]} 39... Bxa8 {[%clk 0:00:20.1]} 40. Nd4
{[%clk 0:00:18.1]} 40... Bd5 {[%clk 0:00:20]} 41. Nb5 {[%clk 0:00:16.6]} 41...
fxe5 {[%clk 0:00:19.6]} 42. Nxa3 {[%clk 0:00:17.7]} 42... Kg8 {[%clk 0:00:19.3]}
43. Nc4 {[%clk 0:00:18.5]} 43... Bxc4 {[%clk 0:00:19.9]} 44. bxc4 {[%clk
0:00:19.9]} 44... Kf7 {[%clk 0:00:21.3]} 45. a4 {[%clk 0:00:20.2]} 45... Ke8
{[%clk 0:00:22]} 46. c5 {[%clk 0:00:21]} 46... Kd7 {[%clk 0:00:17.2]} 47. Kg1
{[%clk 0:00:22.3]} 47... Be3+ {[%clk 0:00:15.6]} 48. Kf1 {[%clk 0:00:22.3]}
48... e4 {[%clk 0:00:17.2]} 49. a5 {[%clk 0:00:21.4]} 49... Kc6 {[%clk
0:00:17.5]} 50. a6 {[%clk 0:00:22.9]} 50... Bd4 {[%clk 0:00:17.4]} 51. Ke2
{[%clk 0:00:24]} 51... g6 {[%clk 0:00:18.4]} 52. g4 {[%clk 0:00:25]} 52... Bg1
{[%clk 0:00:18.8]} 53. Be7 {[%clk 0:00:22]} 53... Bd4 {[%clk 0:00:19.3]} 54. Bd6
{[%clk 0:00:23.2]} 54... Bg1 {[%clk 0:00:19.7]} 55. Be7 {[%clk 0:00:24.6]} 55...
e5 {[%clk 0:00:20.5]} 56. Bd6 {[%clk 0:00:25.5]} 56... Bd4 {[%clk 0:00:21.6]}
57. Be7 {[%clk 0:00:26.4]} 57... Kc7 {[%clk 0:00:22.2]} 58. Bd6+ {[%clk
0:00:22.2]} 58... Kc6 {[%clk 0:00:23.6]} 59. Be7 {[%clk 0:00:23.2]} 59... Kc7
{[%clk 0:00:23]} 60. Bd6+ {[%clk 0:00:24.4]} 60... Kc6 {[%clk 0:00:24.3]} 61.
Be7 {[%clk 0:00:25.7]} 61... Kc7 {[%clk 0:00:25.2]} 62. Bd6+ {[%clk 0:00:27.1]}
1/2-1/2

[Event "*** Titled Tuesday Blitz"]
[Site "Chess.com"]
[Date "2018.06.05"]
[Round "4"]
[White "gmjlh"]
[Black "TigranLPetrosyan"]
[Result "0-1"]
[WhiteElo "2620"]
[BlackElo "2818"]
[TimeControl "180+2"]
[EndTime "13:59:36 PDT"]
[Termination "TigranLPetrosyan won on time"]

1. e4 {[%clk 0:03:01.9]} 1... g6 {[%clk 0:03:00.8]} 2. d4 {[%clk 0:03:02.3]}
2... Bg7 {[%clk 0:03:02.7]} 3. Nc3 {[%clk 0:03:02.9]} 3... a6 {[%clk 0:03:04.1]}
4. Nf3 {[%clk 0:03:02.8]} 4... b5 {[%clk 0:03:05]} 5. Bd3 {[%clk 0:03:02.2]}
5... Bb7 {[%clk 0:03:06.3]} 6. O-O {[%clk 0:03:01.6]} 6... d6 {[%clk 0:03:07.6]}
7. a4 {[%clk 0:02:58.6]} 7... b4 {[%clk 0:03:08.1]} 8. Nd5 {[%clk 0:02:59.1]}
8... Bxd5 {[%clk 0:03:07.3]} 9. exd5 {[%clk 0:02:59.7]} 9... Nf6 {[%clk
0:03:09.2]} 10. Bc4 {[%clk 0:02:56.8]} 10... O-O {[%clk 0:03:06.8]} 11. Qe2
{[%clk 0:02:52.4]} 11... c6 {[%clk 0:03:01.4]} 12. dxc6 {[%clk 0:02:50.8]} 12...
d5 {[%clk 0:03:02.6]} 13. Bd3 {[%clk 0:02:49.4]} 13... Nxc6 {[%clk 0:03:02.7]}
14. Bxa6 {[%clk 0:02:46.3]} 14... Qb6 {[%clk 0:02:57.9]} 15. Bb5 {[%clk
0:02:44.4]} 15... Ne4 {[%clk 0:02:21.4]} 16. Bxc6 {[%clk 0:01:38]} 16... Qxc6
{[%clk 0:02:23.3]} 17. Ne5 {[%clk 0:01:28.3]} 17... Bxe5 {[%clk 0:02:08.4]} 18.
dxe5 {[%clk 0:01:30.2]} 18... Rfc8 {[%clk 0:02:09.6]} 19. f3 {[%clk 0:01:23.3]}
19... Nc5 {[%clk 0:02:10.3]} 20. b3 {[%clk 0:01:22.4]} 20... Ne6 {[%clk
0:02:09.8]} 21. Ra2 {[%clk 0:01:05]} 21... Nd4 {[%clk 0:01:55]} 22. Qd2 {[%clk
0:01:01.5]} 22... Nxc2 {[%clk 0:01:46.7]} 23. Bb2 {[%clk 0:00:49.7]} 23... Qb6+
{[%clk 0:01:03]} 24. Rf2 {[%clk 0:00:49.9]} 24... Rc6 {[%clk 0:00:56.3]} 25. h4
{[%clk 0:00:48.1]} 25... Rac8 {[%clk 0:00:54]} 26. Kh2 {[%clk 0:00:42.4]} 26...
h5 {[%clk 0:00:47.8]} 27. Re2 {[%clk 0:00:33.3]} 27... Na3 {[%clk 0:00:42.2]}
28. e6 {[%clk 0:00:26.2]} 28... Rxe6 {[%clk 0:00:26.7]} 29. Rxe6 {[%clk
0:00:26.5]} 29... Qxe6 {[%clk 0:00:28.6]} 30. Qxb4 {[%clk 0:00:23.4]} 30... Nc2
{[%clk 0:00:23.8]} 31. Qf4 {[%clk 0:00:20]} 31... Ne3 {[%clk 0:00:20.3]} 32. Qe5
{[%clk 0:00:18.9]} 32... Qxe5+ {[%clk 0:00:13.2]} 33. Bxe5 {[%clk 0:00:20.8]}
33... f6 {[%clk 0:00:14.4]} 34. Bd4 {[%clk 0:00:22.1]} 34... Nf5 {[%clk
0:00:15.5]} 35. Bf2 {[%clk 0:00:23.6]} 35... d4 {[%clk 0:00:15.8]} 36. a5 {[%clk
0:00:24.6]} 36... e5 {[%clk 0:00:17.2]} 37. a6 {[%clk 0:00:25.4]} 37... Nd6
{[%clk 0:00:18.8]} 38. a7 {[%clk 0:00:12.2]} 38... Ra8 {[%clk 0:00:19.8]} 39. f4
{[%clk 0:00:13.3]} 39... Nc8 {[%clk 0:00:14.9]} 40. fxe5 {[%clk 0:00:13.7]}
40... fxe5 {[%clk 0:00:16.8]} 41. Re2 {[%clk 0:00:13]} 41... Nxa7 {[%clk
0:00:15.4]} 42. Rxe5 {[%clk 0:00:13.8]} 42... Rd8 {[%clk 0:00:16.8]} 43. Be1
{[%clk 0:00:05.1]} 43... d3 {[%clk 0:00:17.2]} 44. Bd2 {[%clk 0:00:05.1]} 44...
Kf7 {[%clk 0:00:18]} 45. Kg3 {[%clk 0:00:05.5]} 45... Nc6 {[%clk 0:00:18.9]} 46.
Re4 {[%clk 0:00:06.5]} 46... Nd4 {[%clk 0:00:18.4]} 47. Kf2 {[%clk 0:00:02.8]}
47... Nxb3 {[%clk 0:00:19.2]} 48. Ke3 {[%clk 0:00:04.3]} 48... Rd5 {[%clk
0:00:19.2]} 49. Rf4+ {[%clk 0:00:05.4]} 49... Ke6 {[%clk 0:00:20]} 50. Re4+
{[%clk 0:00:06.8]} 50... Kd7 {[%clk 0:00:19.5]} 51. Rb4 {[%clk 0:00:08.2]} 51...
Nc5 {[%clk 0:00:20.3]} 52. Rd4 {[%clk 0:00:07.8]} 52... Ke6 {[%clk 0:00:21.1]}
53. Rxd5 {[%clk 0:00:08.1]} 53... Kxd5 {[%clk 0:00:23]} 54. Bb4 {[%clk
0:00:09.4]} 54... Na6 {[%clk 0:00:22.9]} 55. Bf8 {[%clk 0:00:10.2]} 55... Kc4
{[%clk 0:00:24.3]} 56. Ba3 {[%clk 0:00:06.7]} 56... Kc3 {[%clk 0:00:24.9]} 57.
Bc1 {[%clk 0:00:07.6]} 57... Kc2 {[%clk 0:00:25.2]} 58. Bd2 {[%clk 0:00:08.1]}
58... Nc7 {[%clk 0:00:26.7]} 59. Ba5 {[%clk 0:00:09]} 59... Nd5+ {[%clk
0:00:26.3]} 60. Kd4 {[%clk 0:00:10.3]} 60... Nf4 {[%clk 0:00:27.2]} 61. g3
{[%clk 0:00:08.2]} 61... Ne2+ {[%clk 0:00:28.1]} 62. Ke5 {[%clk 0:00:09.8]}
62... Nxg3 {[%clk 0:00:29.4]} 63. Kf6 {[%clk 0:00:09.6]} 63... Ne4+ {[%clk
0:00:29.7]} 64. Kxg6 {[%clk 0:00:09.7]} 64... Nc3 {[%clk 0:00:31.2]} 0-1

[Event "*** Titled Tuesday Blitz"]
[Site "Chess.com"]
[Date "2018.06.05"]
[Round "4"]
[White "Aygehovit1992"]
[Black "RDMGUY01"]
[Result "1-0"]
[WhiteElo "2511"]
[BlackElo "2385"]
[TimeControl "180+2"]
[EndTime "13:59:38 PDT"]
[Termination "Aygehovit1992 won by resignation"]

1. e4 {[%clk 0:03:01.9]} 1... c5 {[%clk 0:02:55.6]} 2. Be2 {[%clk 0:03:01.1]}
2... d6 {[%clk 0:02:56.1]} 3. f4 {[%clk 0:03:02.1]} 3... Nc6 {[%clk 0:02:56.5]}
4. Nf3 {[%clk 0:03:02.9]} 4... Nf6 {[%clk 0:02:57.6]} 5. Nc3 {[%clk 0:03:01.2]}
5... e6 {[%clk 0:02:56.9]} 6. O-O {[%clk 0:03:01.1]} 6... Be7 {[%clk 0:02:58.1]}
7. b3 {[%clk 0:02:56.9]} 7... O-O {[%clk 0:02:58.8]} 8. Bb2 {[%clk 0:02:58.4]}
8... a6 {[%clk 0:02:56.2]} 9. e5 {[%clk 0:02:56.5]} 9... dxe5 {[%clk 0:02:50.7]}
10. fxe5 {[%clk 0:02:57.4]} 10... Nd7 {[%clk 0:02:50.9]} 11. Ne4 {[%clk
0:02:57.9]} 11... Qc7 {[%clk 0:02:46.5]} 12. Qe1 {[%clk 0:02:30]} 12... Ndxe5
{[%clk 0:02:25.1]} 13. Nxe5 {[%clk 0:02:31]} 13... Nxe5 {[%clk 0:02:25.3]} 14.
Qg3 {[%clk 0:02:28.9]} 14... f6 {[%clk 0:02:22.4]} 15. Nxf6+ {[%clk 0:02:25.9]}
15... Bxf6 {[%clk 0:02:08.1]} 16. Rxf6 {[%clk 0:02:26.5]} 16... Rxf6 {[%clk
0:02:02.7]} 17. Bxe5 {[%clk 0:02:27.3]} 17... Qf7 {[%clk 0:01:52.9]} 18. Bxf6
{[%clk 0:02:28.2]} 18... Qxf6 {[%clk 0:01:54.2]} 19. c3 {[%clk 0:02:28.8]} 19...
Bd7 {[%clk 0:01:47.8]} 20. Rf1 {[%clk 0:02:18.2]} 20... Qg6 {[%clk 0:01:33.6]}
21. Qxg6 {[%clk 0:02:18.3]} 21... hxg6 {[%clk 0:01:34.7]} 22. Bf3 {[%clk
0:02:18.2]} 22... Bc6 {[%clk 0:01:31.2]} 23. Bxc6 {[%clk 0:02:18.8]} 23... bxc6
{[%clk 0:01:33.1]} 24. Rf3 {[%clk 0:02:11.6]} 24... a5 {[%clk 0:01:31.3]} 25.
Kf2 {[%clk 0:02:10]} 25... a4 {[%clk 0:01:30.6]} 26. Rf4 {[%clk 0:02:08.1]}
26... axb3 {[%clk 0:01:30.1]} 27. axb3 {[%clk 0:02:10]} 27... Ra3 {[%clk
0:01:23.4]} 28. Rc4 {[%clk 0:02:07.4]} 28... Rxb3 {[%clk 0:01:24]} 29. Rxc5
{[%clk 0:02:08.7]} 29... Rb6 {[%clk 0:01:24.1]} 30. Ke3 {[%clk 0:02:09.4]} 30...
Kf7 {[%clk 0:01:25.4]} 31. Kd4 {[%clk 0:02:10.4]} 31... Kf6 {[%clk 0:01:21.7]}
32. h4 {[%clk 0:02:11.5]} 32... Ra6 {[%clk 0:01:20.1]} 33. g4 {[%clk 0:02:12]}
33... Ra4+ {[%clk 0:01:16.9]} 34. c4 {[%clk 0:02:12.7]} 34... Ra6 {[%clk
0:01:14.8]} 35. g5+ {[%clk 0:02:13.1]} 35... Ke7 {[%clk 0:01:13.6]} 36. Re5
{[%clk 0:02:03]} 36... Ra2 {[%clk 0:01:06.5]} 37. d3 {[%clk 0:02:03.6]} 37...
Rh2 {[%clk 0:01:05.8]} 38. Kc5 {[%clk 0:02:02.4]} 38... Kd7 {[%clk 0:00:52]} 39.
Re4 {[%clk 0:01:48.4]} 39... Rh3 {[%clk 0:00:46.8]} 40. d4 {[%clk 0:01:47.3]}
40... Rf3 {[%clk 0:00:45.2]} 41. Re2 {[%clk 0:01:30.5]} 41... Rf4 {[%clk
0:00:40.6]} 42. Ra2 {[%clk 0:01:25.8]} 42... Rxh4 {[%clk 0:00:37.8]} 43. Ra7+
{[%clk 0:01:26.1]} 43... Ke8 {[%clk 0:00:36.5]} 44. Rxg7 {[%clk 0:01:27.6]}
44... Rg4 {[%clk 0:00:35.3]} 45. Rxg6 {[%clk 0:01:28.8]} 45... Kf7 {[%clk
0:00:36.3]} 46. Rh6 {[%clk 0:01:25.8]} 46... Rxg5+ {[%clk 0:00:36]} 47. Kxc6
{[%clk 0:01:27.1]} 47... Rg4 {[%clk 0:00:34.5]} 48. Kc5 {[%clk 0:01:17.3]} 48...
Rg5+ {[%clk 0:00:33.4]} 49. Kd6 {[%clk 0:01:16.9]} 49... Rg4 {[%clk 0:00:29.7]}
50. d5 {[%clk 0:01:09.5]} 50... exd5 {[%clk 0:00:27.8]} 51. c5 {[%clk 0:01:11]}
51... d4 {[%clk 0:00:22.8]} 52. c6 {[%clk 0:01:10.8]} 52... d3 {[%clk
0:00:24.3]} 53. Kc5 {[%clk 0:00:58.7]} 53... d2 {[%clk 0:00:20.3]} 54. Rd6
{[%clk 0:00:59.3]} 54... Rg5+ {[%clk 0:00:18.4]} 55. Kb6 {[%clk 0:00:59.8]}
55... Ke7 {[%clk 0:00:12.5]} 56. Rxd2 {[%clk 0:00:59.9]} 56... Rg1 {[%clk
0:00:14.1]} 57. Kb7 {[%clk 0:00:54.9]} 57... Rb1+ {[%clk 0:00:15.2]} 58. Kc8
{[%clk 0:00:56]} 58... Rc1 {[%clk 0:00:16.5]} 59. c7 {[%clk 0:00:57.4]} 59...
Rb1 {[%clk 0:00:15.8]} 60. Re2+ {[%clk 0:00:55.6]} 60... Kf7 {[%clk 0:00:15.6]}
61. Re4 {[%clk 0:00:50.7]} 61... Rb2 {[%clk 0:00:12.3]} 62. Kd7 {[%clk
0:00:51.6]} 62... Rd2+ {[%clk 0:00:13.2]} 63. Kc6 {[%clk 0:00:52.7]} 63... Rc2+
{[%clk 0:00:14.8]} 64. Kb6 {[%clk 0:00:47.2]} 64... Kf8 {[%clk 0:00:12.4]} 65.
Re5 {[%clk 0:00:47.9]} 1-0

[Event "*** Titled Tuesday Blitz"]
[Site "Chess.com"]
[Date "2018.06.05"]
[Round "4"]
[White "ENEASZ"]
[Black "djamir"]
[Result "1-0"]
[WhiteElo "2519"]
[BlackElo "2576"]
[TimeControl "180+2"]
[EndTime "13:59:44 PDT"]
[Termination "ENEASZ won by resignation"]

1. e4 {[%clk 0:02:59.4]} 1... c5 {[%clk 0:02:57.5]} 2. c3 {[%clk 0:03:00.3]}
2... Nf6 {[%clk 0:02:56.4]} 3. e5 {[%clk 0:03:01.4]} 3... Nd5 {[%clk 0:02:57.9]}
4. d4 {[%clk 0:03:03.3]} 4... cxd4 {[%clk 0:02:58.6]} 5. Nf3 {[%clk 0:03:04.9]}
5... d6 {[%clk 0:02:58.2]} 6. Bc4 {[%clk 0:03:03.6]} 6... Nb6 {[%clk 0:02:55.8]}
7. Bb3 {[%clk 0:03:02.3]} 7... e6 {[%clk 0:02:48.2]} 8. O-O {[%clk 0:02:53.7]}
8... Nc6 {[%clk 0:02:33.1]} 9. Bg5 {[%clk 0:02:45.2]} 9... Qc7 {[%clk
0:02:24.6]} 10. exd6 {[%clk 0:02:36.6]} 10... Bxd6 {[%clk 0:02:26.5]} 11. cxd4
{[%clk 0:02:37.8]} 11... O-O {[%clk 0:02:24.3]} 12. Nc3 {[%clk 0:02:38.2]} 12...
Bf4 {[%clk 0:02:18.5]} 13. Qd3 {[%clk 0:02:34.9]} 13... h6 {[%clk 0:02:06.1]}
14. Bxf4 {[%clk 0:02:16.6]} 14... Qxf4 {[%clk 0:02:07.9]} 15. Qe3 {[%clk
0:02:18.5]} 15... Qd6 {[%clk 0:01:27]} 16. Rfd1 {[%clk 0:02:17.2]} 16... Nd5
{[%clk 0:01:25.7]} 17. Nxd5 {[%clk 0:02:08.8]} 17... exd5 {[%clk 0:01:27.6]} 18.
Ne5 {[%clk 0:02:10.4]} 18... Re8 {[%clk 0:01:25.2]} 19. Qg3 {[%clk 0:01:53.2]}
19... Nxe5 {[%clk 0:00:53.2]} 20. dxe5 {[%clk 0:01:55.1]} 20... Qxe5 {[%clk
0:00:55]} 21. Qxe5 {[%clk 0:01:48.5]} 21... Rxe5 {[%clk 0:00:56.9]} 22. Bxd5
{[%clk 0:01:50.2]} 22... Be6 {[%clk 0:00:52.5]} 23. Bxe6 {[%clk 0:01:48]} 23...
Rxe6 {[%clk 0:00:54.4]} 24. Rd7 {[%clk 0:01:49.1]} 24... Rb8 {[%clk 0:00:54.2]}
25. Rc1 {[%clk 0:01:46.3]} 25... Re2 {[%clk 0:00:51.9]} 26. Rb1 {[%clk
0:01:42.5]} 26... Kf8 {[%clk 0:00:49]} 27. g3 {[%clk 0:01:42.4]} 27... Re7
{[%clk 0:00:49.4]} 28. Rbd1 {[%clk 0:01:41.6]} 28... Ke8 {[%clk 0:00:50.8]} 29.
Rxe7+ {[%clk 0:01:40.8]} 29... Kxe7 {[%clk 0:00:52.7]} 30. Kg2 {[%clk
0:01:42.2]} 30... Rc8 {[%clk 0:00:52.3]} 31. Rd2 {[%clk 0:01:42.5]} 31... Rc6
{[%clk 0:00:49.8]} 32. f4 {[%clk 0:01:43.4]} 32... Rd6 {[%clk 0:00:49.2]} 33.
Rc2 {[%clk 0:01:44.3]} 33... Kd7 {[%clk 0:00:49.7]} 34. Kf3 {[%clk 0:01:45.3]}
34... f5 {[%clk 0:00:50.1]} 35. Ke3 {[%clk 0:01:44.9]} 35... g6 {[%clk
0:00:51.2]} 36. h3 {[%clk 0:01:43.5]} 36... h5 {[%clk 0:00:51.8]} 37. b3 {[%clk
0:01:33.7]} 37... b6 {[%clk 0:00:52.6]} 38. Rg2 {[%clk 0:01:27]} 38... Kc6
{[%clk 0:00:45.1]} 39. Rc2+ {[%clk 0:01:27.4]} 39... Kd7 {[%clk 0:00:45.9]} 40.
Rg2 {[%clk 0:01:26.5]} 40... Re6+ {[%clk 0:00:40.1]} 41. Kd4 {[%clk 0:01:18.6]}
41... Kd6 {[%clk 0:00:40.9]} 42. Rc2 {[%clk 0:01:05.8]} 42... h4 {[%clk
0:00:40.6]} 43. gxh4 {[%clk 0:01:06.1]} 43... Re4+ {[%clk 0:00:41.7]} 44. Kd3
{[%clk 0:01:07.6]} 44... Rxf4 {[%clk 0:00:43]} 45. Rg2 {[%clk 0:01:08.7]} 45...
Rxh4 {[%clk 0:00:42.5]} 46. Rxg6+ {[%clk 0:01:09.7]} 46... Kd5 {[%clk
0:00:33.7]} 47. Rg3 {[%clk 0:01:05.2]} 47... Ke5 {[%clk 0:00:33.2]} 48. Rg7
{[%clk 0:01:01.4]} 48... Rxh3+ {[%clk 0:00:30.3]} 49. Kc4 {[%clk 0:01:02.5]}
49... f4 {[%clk 0:00:25.8]} 50. Rxa7 {[%clk 0:01:02.2]} 50... Ke4 {[%clk
0:00:26]} 51. Re7+ {[%clk 0:00:55.7]} 51... Kf3 {[%clk 0:00:27.1]} 52. Kb5
{[%clk 0:00:55]} 52... Rh2 {[%clk 0:00:25.2]} 53. a4 {[%clk 0:00:55]} 53... Rb2
{[%clk 0:00:24.6]} 54. b4 {[%clk 0:00:49]} 54... Kg2 {[%clk 0:00:25.9]} 55. Rg7+
{[%clk 0:00:49.2]} 55... Kf2 {[%clk 0:00:26.9]} 56. Rg6 {[%clk 0:00:48.2]} 56...
f3 {[%clk 0:00:27.9]} 57. Rxb6 {[%clk 0:00:49.1]} 57... Ke2 {[%clk 0:00:26.2]}
58. a5 {[%clk 0:00:49.6]} 58... f2 {[%clk 0:00:27.3]} 59. Re6+ {[%clk
0:00:50.2]} 59... Kd2 {[%clk 0:00:28.7]} 60. Rf6 {[%clk 0:00:51.1]} 60... Ke2
{[%clk 0:00:28.9]} 61. a6 {[%clk 0:00:51.1]} 61... Rb3 {[%clk 0:00:28]} 62. a7
{[%clk 0:00:46.1]} 62... Ra3 {[%clk 0:00:27.8]} 63. Kb6 {[%clk 0:00:44.2]} 63...
f1=Q {[%clk 0:00:19.6]} 64. Rxf1 {[%clk 0:00:44.4]} 64... Kxf1 {[%clk
0:00:21.5]} 65. b5 {[%clk 0:00:39.7]} 65... Ke2 {[%clk 0:00:23.4]} 66. Kb7
{[%clk 0:00:41]} 66... Kd3 {[%clk 0:00:24.8]} 67. a8=Q {[%clk 0:00:40.1]} 67...
Rxa8 {[%clk 0:00:26.7]} 68. Kxa8 {[%clk 0:00:41.5]} 1-0

[Event "*** Titled Tuesday Blitz"]
[Site "Chess.com"]
[Date "2018.06.05"]
[Round "4"]
[White "biostatistician"]
[Black "jlucasvf"]
[Result "1-0"]
[WhiteElo "2451"]
[BlackElo "2261"]
[TimeControl "180+2"]
[EndTime "13:59:45 PDT"]
[Termination "biostatistician won by checkmate"]

1. d4 {[%clk 0:03:01.8]} 1... Nf6 {[%clk 0:03:00.4]} 2. Nf3 {[%clk 0:03:03]}
2... d5 {[%clk 0:03:00.5]} 3. c4 {[%clk 0:03:04.4]} 3... e6 {[%clk 0:03:02.1]}
4. Bg5 {[%clk 0:03:05.4]} 4... dxc4 {[%clk 0:03:00.9]} 5. Nc3 {[%clk 0:03:05]}
5... Bb4 {[%clk 0:02:59.9]} 6. e4 {[%clk 0:03:06.2]} 6... h6 {[%clk 0:03:00.6]}
7. Bxf6 {[%clk 0:03:07.1]} 7... Qxf6 {[%clk 0:03:02.5]} 8. Bxc4 {[%clk
0:03:08.6]} 8... c5 {[%clk 0:03:03.7]} 9. O-O {[%clk 0:03:08.6]} 9... O-O {[%clk
0:03:00.8]} 10. e5 {[%clk 0:02:57.7]} 10... Qd8 {[%clk 0:03:00.5]} 11. a3 {[%clk
0:02:55.4]} 11... Bxc3 {[%clk 0:03:01]} 12. bxc3 {[%clk 0:02:57.3]} 12... cxd4
{[%clk 0:03:00.1]} 13. cxd4 {[%clk 0:02:58.4]} 13... Nc6 {[%clk 0:02:59.1]} 14.
Qd3 {[%clk 0:02:59.1]} 14... Ne7 {[%clk 0:02:58.7]} 15. Bb3 {[%clk 0:02:56.5]}
15... Bd7 {[%clk 0:02:55.2]} 16. Bc2 {[%clk 0:02:56.9]} 16... g6 {[%clk
0:02:56.5]} 17. Nd2 {[%clk 0:02:55.3]} 17... Bc6 {[%clk 0:02:55.7]} 18. Ne4
{[%clk 0:02:56.6]} 18... Bxe4 {[%clk 0:02:54.4]} 19. Qxe4 {[%clk 0:02:58.5]}
19... Qd5 {[%clk 0:02:52.8]} 20. Rac1 {[%clk 0:02:53.7]} 20... Rac8 {[%clk
0:02:50.4]} 21. Qf4 {[%clk 0:02:54.4]} 21... Rfd8 {[%clk 0:02:31.2]} 22. Rfd1
{[%clk 0:02:46.3]} 22... Qa2 {[%clk 0:02:08.2]} 23. Bb1 {[%clk 0:02:00.1]} 23...
Qxa3 {[%clk 0:02:07.3]} 24. Rxc8 {[%clk 0:01:52]} 24... Rxc8 {[%clk 0:02:09.2]}
25. Qxh6 {[%clk 0:01:53.4]} 25... Qb3 {[%clk 0:02:00.7]} 26. Rf1 {[%clk
0:01:44.4]} 26... Qb4 {[%clk 0:01:34.3]} 27. d5 {[%clk 0:01:29.2]} 27... Nxd5
{[%clk 0:01:19.2]} 28. Bxg6 {[%clk 0:01:28.5]} 28... fxg6 {[%clk 0:01:18.1]} 29.
Qxg6+ {[%clk 0:01:30.4]} 29... Kf8 {[%clk 0:01:18.8]} 30. Qxe6 {[%clk
0:01:28.7]} 30... Ne7 {[%clk 0:01:18.7]} 31. Qf6+ {[%clk 0:01:28.2]} 31... Ke8
{[%clk 0:01:17.6]} 32. e6 {[%clk 0:01:28.2]} 32... Qd6 {[%clk 0:01:13.4]} 33.
Qh8+ {[%clk 0:01:25.4]} 33... Ng8 {[%clk 0:01:12]} 34. Qxg8+ {[%clk 0:01:26.8]}
34... Qf8 {[%clk 0:01:12.1]} 35. Qg6+ {[%clk 0:01:23.7]} 35... Ke7 {[%clk
0:01:12.7]} 36. Qh7+ {[%clk 0:01:24.5]} 36... Kxe6 {[%clk 0:01:08.3]} 37. Re1+
{[%clk 0:01:25.6]} 37... Kf6 {[%clk 0:01:07.2]} 38. Qxb7 {[%clk 0:01:25.8]}
38... Qc5 {[%clk 0:01:06.6]} 39. h4 {[%clk 0:01:22.1]} 39... Rf8 {[%clk
0:01:01.9]} 40. Ra1 {[%clk 0:01:10.2]} 40... a5 {[%clk 0:00:59.8]} 41. Qa6+
{[%clk 0:01:08.7]} 41... Kg7 {[%clk 0:01:00.8]} 42. Qb7+ {[%clk 0:01:05.1]}
42... Rf7 {[%clk 0:00:59.9]} 43. Qb2+ {[%clk 0:01:04.7]} 43... Kg8 {[%clk
0:00:59.4]} 44. Qd2 {[%clk 0:00:56.8]} 44... Rf5 {[%clk 0:00:56.7]} 45. Re1
{[%clk 0:00:52.2]} 45... Kg7 {[%clk 0:00:50.5]} 46. Qd7+ {[%clk 0:00:52.1]}
46... Rf7 {[%clk 0:00:51.5]} 47. Qg4+ {[%clk 0:00:53.4]} 47... Kf8 {[%clk
0:00:51.6]} 48. Qe2 {[%clk 0:00:41.8]} 48... a4 {[%clk 0:00:50.9]} 49. Qe8+
{[%clk 0:00:43.2]} 49... Kg7 {[%clk 0:00:51.2]} 50. Qe5+ {[%clk 0:00:45.1]}
50... Qxe5 {[%clk 0:00:52.3]} 51. Rxe5 {[%clk 0:00:47]} 51... Ra7 {[%clk
0:00:53.2]} 52. Re2 {[%clk 0:00:48.7]} 52... a3 {[%clk 0:00:53.6]} 53. Ra2
{[%clk 0:00:50.3]} 53... Kf6 {[%clk 0:00:55.2]} 54. Kh2 {[%clk 0:00:49.2]} 54...
Kf5 {[%clk 0:00:54]} 55. Kh3 {[%clk 0:00:50]} 55... Ra4 {[%clk 0:00:55]} 56. f3
{[%clk 0:00:49.3]} 56... Kf4 {[%clk 0:00:55.3]} 57. h5 {[%clk 0:00:50.1]} 57...
Ra5 {[%clk 0:00:53.7]} 58. Kh4 {[%clk 0:00:50.6]} 58... Ra4 {[%clk 0:00:46.9]}
59. h6 {[%clk 0:00:44.8]} 59... Ra5 {[%clk 0:00:48]} 60. g4 {[%clk 0:00:44]}
60... Kxf3 {[%clk 0:00:46.8]} 61. h7 {[%clk 0:00:44.6]} 61... Ra8 {[%clk
0:00:45.7]} 62. g5 {[%clk 0:00:45]} 62... Kf4 {[%clk 0:00:37.6]} 63. g6 {[%clk
0:00:46]} 63... Rb8 {[%clk 0:00:37.3]} 64. g7 {[%clk 0:00:39.8]} 64... Rb1
{[%clk 0:00:38.2]} 65. Rxa3 {[%clk 0:00:41.1]} 65... Rh1+ {[%clk 0:00:34.9]} 66.
Rh3 {[%clk 0:00:42.6]} 66... Rg1 {[%clk 0:00:36.5]} 67. g8=Q {[%clk 0:00:43.9]}
67... Rg4+ {[%clk 0:00:36.9]} 68. Qxg4+ {[%clk 0:00:45.3]} 68... Ke5 {[%clk
0:00:38.1]} 69. h8=Q+ {[%clk 0:00:46.1]} 69... Kd6 {[%clk 0:00:39.5]} 70. Qd8+
{[%clk 0:00:46.9]} 70... Kc6 {[%clk 0:00:40.2]} 71. Qc4+ {[%clk 0:00:48.4]}
71... Kb7 {[%clk 0:00:41.3]} 72. Rb3+ {[%clk 0:00:49]} 72... Ka7 {[%clk
0:00:41.5]} 73. Qa4# {[%clk 0:00:50.5]} 1-0